fUST/lending_fUST_20240408
["ID","MTS","AMOUNT","RATE_DAILY","PERIOD"]
[321887470,1712583039399,-500.0,0.00061916,120]
[321887471,1712583039409,-500.0,0.00061916,120]
[321887472,1712583039418,-500.0,0.00061916,120]
[321887473,1712583039429,-500.0,0.00061916,120]
[321887474,1712583039438,-500.0,0.00061916,120]
[321887475,1712583039447,-500.0,0.00061916,120]
[321887476,1712583039457,-500.0,0.00061916,120]
[321887477,1712583039466,-500.0,0.00061916,120]
[321887478,1712583039475,-638.99386642,0.00061916,120]
[321887479,1712583039485,-1111.08,0.00061916,120]
[321887480,1712583039495,-500.0,0.00061916,120]
[321887481,1712583039505,-500.0,0.00061916,120]
[321887482,1712583039514,-564.28,0.00061916,120]
[321887483,1712583039523,-500.0,0.00061916,120]
[321887484,1712583039533,-666.96,0.00061916,120]
[321887485,1712583039542,-1498.8,0.00061916,120]
[321887486,1712583039552,-500.0,0.00061916,120]
[321887487,1712583039561,-1238.51,0.00061916,120]
[321887488,1712583039571,-500.0,0.00061916,120]
[321887489,1712583039582,-500.0,0.00061916,120]
[321887490,1712583039592,-1019.0,0.00061916,120]
[321887491,1712583039601,-500.0,0.00061916,120]
[321887492,1712583039611,-676.0,0.00061916,120]
[321887493,1712583039621,-500.0,0.00061916,120]
[321887494,1712583039630,-500.0,0.00061916,120]
[321887495,1712583039640,-1035.49,0.00061916,120]
[321887496,1712583039649,-500.0,0.00061916,120]
[321887497,1712583039658,-2343.82,0.00061916,90]
[321887498,1712583039668,-410.00342179,0.00061916,120]
[321887499,1712583039679,-500.0,0.00061916,120]
[321887500,1712583039688,-500.0,0.00061916,120]
[321887501,1712583039697,-500.0,0.00061916,120]
[321887502,1712583039707,-500.0,0.00061916,21]
[321887504,1712583039717,-402.35,0.00061916,120]
[321887505,1712583039726,-251.70247451,0.00061916,120]
[321887506,1712583039736,-500.0,0.00061916,120]
[321887507,1712583039746,-500.0,0.00061916,120]
[321887508,1712583039755,-500.0,0.00061916,120]
[321887509,1712583039765,-500.0,0.00061916,120]
[321887510,1712583039775,-614.28975377,0.00061916,120]
[321887511,1712583039785,-328.98279917,0.00061916,120]
[321887512,1712583039795,-500.0,0.00061916,60]
[321887513,1712583039806,-500.0,0.00061916,120]
[321887514,1712583039816,-256.49438441,0.00061916,120]
[321887515,1712583039825,-1420.62,0.00061916,120]
[321887516,1712583039834,-500.0,0.00061916,120]
[321887517,1712583039844,-1841.92274426,0.00061916,120]
[321887518,1712583039856,-58.07725574,0.00061916,120]
[321887519,1712583039865,-500.0,0.00061917,2]
[321887520,1712583039874,-437.20469705,0.00061917,120]
[321887522,1712583040138,-62.79530295,0.00061917,120]
[321887523,1712583040147,-500.0,0.00061917,120]
[321887524,1712583040156,-153.10732009,0.00061917,120]
[321887525,1712583040165,-88.42840563,0.00061917,120]
[321887526,1712583040644,-566.86,0.00061916,120]
[321887527,1712583040653,-411.57159437,0.00061917,120]
[321887528,1712583040663,-591.9,0.00061917,120]
[321887529,1712583040674,-500.0,0.00061917,120]
[321887530,1712583040686,-500.0,0.00061917,120]
[321887531,1712583040695,-211.01784739,0.00061917,120]
[321887532,1712583040705,-500.0,0.00061917,120]
[321887533,1712583040715,-1878.82,0.00061917,120]
[321887534,1712583040725,-1096.72,0.00061917,120]
[321887535,1712583040735,-500.0,0.00061917,120]
[321887536,1712583040745,-1614.25,0.00061917,120]
[321887537,1712583040755,-500.0,0.00061917,120]
[321887538,1712583040765,-166.666666,0.00062449,2]
[321887539,1712583040775,-222.30957102,0.00062621,2]
[321887540,1712583040785,-500.0,0.00062737,120]
[321887541,1712583040794,-500.0,0.00062738,120]
[321887542,1712583040804,-500.0,0.00062738,120]
[321887543,1712583040813,-500.0,0.00062738,120]
[321887544,1712583040823,-500.0,0.00062738,120]
[321887545,1712583040832,-500.0,0.00062738,120]
[321887546,1712583040842,-500.0,0.00062738,120]
[321887547,1712583040851,-500.0,0.00062738,120]
[321887548,1712583040860,-500.0,0.00062738,120]
[321887549,1712583040869,-500.0,0.00062738,120]
[321887550,1712583040879,-159.88432122,0.00062738,120]
[321887551,1712583040897,-951.19567878,0.00062738,120]
[321887552,1712583040905,-500.0,0.00062738,120]
[321887553,1712583040915,-500.0,0.00062738,120]
[321887554,1712583040924,-564.28,0.00062738,120]
[321887555,1712583040940,-500.0,0.00062738,120]
[321887556,1712583040949,-666.96,0.00062738,120]
[321887557,1712583040958,-1498.8,0.00062738,120]
[321887558,1712583040968,-500.0,0.00062738,120]
[321887559,1712583040978,-1238.51,0.00062738,120]
[321887560,1712583040986,-500.0,0.00062738,120]
[321887561,1712583040995,-500.0,0.00062738,120]
[321887562,1712583041005,-1019.0,0.00062738,120]
[321887563,1712583041015,-500.0,0.00062738,120]
[321887564,1712583041024,-676.0,0.00062738,120]
[321887565,1712583041033,-500.0,0.00062738,120]
[321887566,1712583041042,-500.0,0.00062738,120]
[321887567,1712583041051,-1035.49,0.00062738,120]
[321887568,1712583041060,-500.0,0.00062738,120]
[321887569,1712583041069,-2343.82,0.00062738,90]
[321887570,1712583041079,-500.0,0.00062738,120]
[321887571,1712583041088,-500.0,0.00062738,120]
[321887572,1712583041097,-500.0,0.00062738,120]
[321887573,1712583041107,-500.0,0.00062738,21]
[321887575,1712583041116,-500.0,0.00062738,120]
[321887577,1712583041125,-519.44,0.00062738,120]
[321887579,1712583041136,-500.0,0.00062738,120]
[321887580,1712583041145,-500.0,0.00062738,120]
[321887581,1712583041153,-500.0,0.00062738,60]
[321887582,1712583041163,-500.0,0.00062738,120]
[321887583,1712583041171,-1420.62,0.00062738,120]
[321887584,1712583041182,-500.0,0.00062738,120]
[321887585,1712583041192,-1900.0,0.00062738,120]
[321887586,1712583041201,-566.86,0.00062738,120]
[321887587,1712583041210,-439.56669573,0.00062739,61]
[321887777,1712583045598,-500.0,0.00061916,120]
[321887779,1712583045607,-500.0,0.00061916,120]
[321887781,1712583045617,-500.0,0.00062738,120]
[321887783,1712583045627,-245.950685,0.00062739,61]
[321887923,1712583046805,-500.0,0.00062738,120]
[321887925,1712583046814,-3214.84628284,0.00062739,61]
[321888136,1712583068666,420.537628,0.00045884,30]
[321888137,1712583068993,420.537628,0.00046458,30]
[321888138,1712583069333,420.537628,0.00047031,30]
[321888139,1712583069934,312.70434619,0.00047605,30]
[321888151,1712583390369,177.614821,0.00027397,2]
[321888212,1712584032128,-372.12463709,0.00039705,4]
[321888213,1712584032149,-278.36597163,0.00039705,4]
[321888214,1712584032168,-1469.23644973,0.00039706,4]
[321888215,1712584032190,-925.71434041,0.00039707,4]
[321888216,1712584032216,-551.688958,0.0004025,2]
[321888217,1712584032240,-930.42276762,0.0004041,2]
[321888218,1712584048848,253.667706,0.00027397,2]
[321888219,1712584049076,253.667706,0.00033165,2]
[321888220,1712584054878,-253.667706,0.00038933,2]
[321888221,1712584054905,-72815.90955218,0.00040409,4]
[321888223,1712584079036,-331.21123082,0.00040407,4]
[321888224,1712584079063,-199.49999685,0.00040408,4]
[321888225,1712584079090,-1094.18689104,0.00040408,4]
[321888227,1712584079116,-478.63566699,0.00040408,30]
[321888230,1712584079144,-157.14265956,0.00040408,4]
[321888232,1712584079171,-253.667706,0.00040409,4]
[321888234,1712584079198,-23959.57723238,0.0004041,2]
[321888236,1712584079225,-154.84515485,0.00041,4]
[321888239,1712584079251,-166.666666,0.00041096,2]
[321888241,1712584079280,-1224.36370811,0.00041505,4]
[321888242,1712584079305,-217.4057204,0.00041537,2]
[321888243,1712584079332,-172.6030358,0.00041687,2]
[321888244,1712584079358,-168.05824066,0.00041826,2]
[321888245,1712584079384,-550.0,0.00041924,3]
[321888246,1712584079413,-300.0,0.00041924,5]
[321888247,1712584079535,-475.55065609,0.00041925,4]
[321888248,1712584079565,-246.66595065,0.00041925,31]
[321888249,1712584079591,-500.0,0.00041925,31]
[321888250,1712584079621,-488.39006162,0.00041925,31]
[321888251,1712584079647,-420.80886636,0.00041925,31]
[321888252,1712584079675,-271.28018705,0.00041925,4]
[321888253,1712584079702,-630.71473574,0.00041925,4]
[321888254,1712584079729,-356.22133865,0.00041925,31]
[321888255,1712584079756,-181.64792446,0.00041926,4]
[321888256,1712584079793,-10605.4759799,0.00041927,4]
[321888257,1712584079821,-213.7278386,0.00041928,2]
[321888258,1712584079848,-166.666666,0.00042058,2]
[321888259,1712584079875,-250.0,0.00042575,2]
[321888260,1712584079903,-445.82803513,0.00042997,4]
[321888261,1712584079931,-814.076411,0.00042998,4]
[321888262,1712584079960,-31531.64053375,0.00043,120]
[321888263,1712584079988,-166.666666,0.00043019,2]
[321888264,1712584080022,-167.63216159,0.000431,2]
[321888265,1712584080050,-160.4037179,0.00043202,2]
[321888266,1712584080077,-160.13185607,0.00043255,30]
[321888267,1712584080106,-166.666666,0.00043981,2]
[321888268,1712584080134,-578.63673527,0.00044193,30]
[321888269,1712584080162,-435.35442115,0.00044201,4]
[321888270,1712584080190,-155.0,0.00044201,4]
[321888271,1712584080220,-289.42077387,0.00044201,2]
[321888272,1712584080251,-155.0,0.00044201,4]
[321888273,1712584080290,-360.55956051,0.00044202,4]
[321888274,1712584080321,-156.69685818,0.00044202,4]
[321888275,1712584080355,-155.85883532,0.00044202,4]
[321888276,1712584080386,-591.09275558,0.00044202,4]
[321888277,1712584080416,-253.667706,0.00044701,2]
[321888278,1712584080444,-166.666666,0.00044942,2]
[321888279,1712584080485,-2341.25854721,0.00045,3]
[321888280,1712584080535,-8505.47769372,0.00045,120]
[321888281,1712584080579,-509.6458383,0.00045505,2]
[321888282,1712584080624,-177.614821,0.00045662,2]
[321888283,1712584080665,-168.981001,0.00045884,30]
[321888284,1712584080691,-168.980999,0.00045884,30]
[321888285,1712584080719,-166.666666,0.00045904,2]
[321888286,1712584080748,-153.51768998,0.00046664,30]
[321888287,1712584080779,-167.63216158,0.00046859,2]
[321888288,1712584080809,-200.24862657,0.000469,2]
[321888289,1712584080838,-163.0,0.00047,90]
[321888290,1712584080865,-172.115563,0.0004702,120]
[321888291,1712584080893,-868.43607869,0.000475,2]
[321888292,1712584080919,-316.54789397,0.00047604,4]
[321888293,1712584080947,-107.83328181,0.00047605,30]
[321888294,1712584080975,-3465.90127341,0.00047605,4]
[321888295,1712584081003,-420.537628,0.00048179,30]
[321888296,1712584081035,-168.981001,0.00048179,30]
[321888297,1712584081065,-2000.0,0.00049,68]
[321888298,1712584081093,-2878.311483,0.0004901,68]
[321888299,1712584081119,-562.30559427,0.00049833,4]
[321888300,1712584081145,-3456.88796952,0.00049834,4]
[321888301,1712584081171,-168.05824064,0.00049882,2]
[321888302,1712584081197,-250.14061671,0.0005,60]
[321888303,1712584086889,427.26,0.00039711,30]
[321888304,1712584146135,-154.84515485,0.00039711,4]
[321888305,1712584146158,-15833.37433856,0.00040408,4]
[321888306,1712584146179,-234.54851006,0.00040409,4]
[321888307,1712584146203,-154.84515485,0.00041,4]
[321888311,1712584151811,857.05459567,0.0003971,4]
[321888312,1712584163663,190.27874603,0.00039711,4]
[321888383,1712584232577,-253.667706,0.00050469,2]
[321888385,1712584232587,-509.6458383,0.00050505,2]
[321888387,1712584232596,-167.63216158,0.00050618,2]
[321888389,1712584232606,-2231.0,0.00051,120]
[321888391,1712584232616,-177.087326,0.00051351,2]
[321888393,1712584232629,-306.0,0.00052162,2]
[321888395,1712584232639,-167.63216158,0.00054377,2]
[321888397,1712584232649,-509.6458383,0.00055505,2]
[321888400,1712584232659,-979.49096649,0.00056235,4]
[321888403,1712584232668,-253.667706,0.00056236,2]
[321888406,1712584232678,-172.115563,0.00056337,120]
[321888409,1712584232688,-158.3096913,0.00057257,91]
[321888412,1712584232697,-168.05824064,0.00057938,2]
[321888415,1712584232708,-1419.78366367,0.00058037,4]
[321888418,1712584232718,-167.63216158,0.00058135,2]
[321888420,1712584232727,-297.06598823,0.000588,120]
[321888422,1712584232738,-379.754361,0.0005987,4]
[321888424,1712584232748,-574.67789141,0.00060173,14]
[321888426,1712584232758,-339.54683811,0.00060272,7]
[321888428,1712584232768,-716.86,0.00060273,120]
[321888430,1712584232778,-257.25813715,0.00060273,120]
[321888432,1712584232788,-500.0,0.00060273,120]
[321888434,1712584232797,-515.81,0.00060273,120]
[321888436,1712584232808,-500.0,0.00060273,120]
[321888438,1712584232818,-500.0,0.00060273,120]
[321888440,1712584232828,-500.0,0.00060273,120]
[321888442,1712584232838,-500.0,0.00060273,120]
[321888444,1712584232848,-500.0,0.00060273,120]
[321888446,1712584232858,-500.0,0.00060273,120]
[321888448,1712584232867,-632.66,0.00060273,120]
[321888450,1712584232879,-500.0,0.00060273,120]
[321888452,1712584232889,-833.7,0.00060273,120]
[321888454,1712584232899,-1067.98,0.00060273,120]
[321888456,1712584232908,-500.0,0.00060273,120]
[321888458,1712584232917,-500.0,0.00060273,120]
[321888460,1712584232926,-500.0,0.00060273,120]
[321888462,1712584232936,-500.0,0.00060273,120]
[321888464,1712584232945,-500.0,0.00060273,120]
[321888466,1712584232955,-500.0,0.00060273,120]
[321888468,1712584232964,-3744.26,0.00060273,90]
[321888470,1712584232973,-500.0,0.00060273,120]
[321888472,1712584232982,-528.32,0.00060273,120]
[321888473,1712584232994,-500.0,0.00060273,120]
[321888474,1712584233003,-256.55192434,0.00060273,120]
[321888475,1712584233012,-669.32,0.00060273,21]
[321888476,1712584233022,-500.0,0.00060273,120]
[321888477,1712584233036,-500.0,0.00060273,120]
[321888478,1712584233045,-500.0,0.00060273,120]
[321888479,1712584233056,-500.0,0.00060273,120]
[321888480,1712584233065,-500.0,0.00060273,120]
[321888481,1712584233075,-500.0,0.00060273,120]
[321888482,1712584233085,-500.0,0.00060273,120]
[321888483,1712584233096,-523.48574494,0.00060273,120]
[321888484,1712584233105,-500.0,0.00060273,120]
[321888485,1712584233115,-500.0,0.00060273,120]
[321888486,1712584233127,-500.0,0.00060273,120]
[321888487,1712584233137,-500.0,0.00060273,120]
[321888488,1712584233146,-500.0,0.00060273,120]
[321888489,1712584233155,-6096.5,0.00060273,120]
[321888490,1712584233164,-500.0,0.00060273,120]
[321888491,1712584233174,-500.0,0.00060273,120]
[321888492,1712584233184,-500.0,0.00060273,120]
[321888493,1712584233193,-500.0,0.00060273,120]
[321888494,1712584233204,-500.0,0.00060273,120]
[321888495,1712584233214,-3625.23,0.00060273,120]
[321888496,1712584233223,-500.0,0.00060273,60]
[321888497,1712584233232,-500.0,0.00060273,120]
[321888498,1712584233243,-1900.0,0.00060273,120]
[321888499,1712584233253,-500.0,0.00060273,120]
[321888500,1712584233263,-500.0,0.00060273,120]
[321888501,1712584233273,-500.0,0.00060273,120]
[321888502,1712584233286,-500.0,0.00060273,120]
[321888503,1712584233296,-500.0,0.00060273,120]
[321888504,1712584233306,-554.54,0.00060273,120]
[321888505,1712584233315,-841.39,0.00060273,120]
[321888506,1712584233324,-1834.82,0.00060273,120]
[321888507,1712584233333,-551.688958,0.00060374,30]
[321888509,1712584233343,-180.98113052,0.00061092,7]
[321888511,1712584233354,-245.74881865,0.00061092,7]
[321888513,1712584233363,-646.51701848,0.00061094,120]
[321888515,1712584233378,-500.0,0.00061094,120]
[321888517,1712584233388,-500.0,0.00061094,120]
[321888519,1712584233400,-716.86,0.00061095,120]
[321888521,1712584233411,-500.0,0.00061095,120]
[321888523,1712584233419,-515.81,0.00061095,120]
[321888525,1712584233428,-500.0,0.00061095,120]
[321888527,1712584233437,-500.0,0.00061095,120]
[321888528,1712584233447,-500.0,0.00061095,120]
[321888530,1712584233458,-500.0,0.00061095,120]
[321888532,1712584233467,-500.0,0.00061095,120]
[321888534,1712584233477,-632.66,0.00061095,120]
[321888536,1712584233487,-500.0,0.00061095,120]
[321888539,1712584233497,-833.7,0.00061095,120]
[321888541,1712584233506,-1067.98,0.00061095,120]
[321888543,1712584233516,-500.0,0.00061095,120]
[321888544,1712584233525,-500.0,0.00061095,120]
[321888546,1712584233535,-500.0,0.00061095,120]
[321888548,1712584233544,-500.0,0.00061095,120]
[321888550,1712584233555,-500.0,0.00061095,120]
[321888552,1712584233564,-3744.26,0.00061095,90]
[321888555,1712584233574,-500.0,0.00061095,120]
[321888557,1712584233583,-500.0,0.00061095,120]
[321888559,1712584233592,-669.32,0.00061095,21]
[321888561,1712584233602,-341.46,0.00061095,120]
[321888563,1712584233611,-500.0,0.00061095,120]
[321888565,1712584233621,-569.2277631,0.00061095,120]
[321888566,1712584233630,-500.0,0.00061095,120]
[321888569,1712584233639,-500.0,0.00061095,120]
[321888571,1712584233649,-500.0,0.00061095,120]
[321888573,1712584233658,-500.0,0.00061095,120]
[321888575,1712584233668,-6096.5,0.00061095,120]
[321888577,1712584233677,-500.0,0.00061095,120]
[321888579,1712584233686,-500.0,0.00061095,120]
[321888580,1712584233695,-500.0,0.00061095,120]
[321888582,1712584233704,-500.0,0.00061095,120]
[321888584,1712584233714,-500.0,0.00061095,120]
[321888586,1712584233723,-3625.23,0.00061095,120]
[321888589,1712584233733,-500.0,0.00061095,60]
[321888590,1712584233742,-500.0,0.00061095,120]
[321888601,1712584233831,-1900.0,0.00061095,120]
[321888602,1712584233840,-500.0,0.00061095,120]
[321888604,1712584233850,-389.58052197,0.00061095,120]
[321888608,1712584233937,-110.41947803,0.00061095,120]
[321888609,1712584233945,-500.0,0.00061095,120]
[321888610,1712584233954,-500.0,0.00061095,120]
[321888611,1712584233965,-500.0,0.00061095,120]
[321888612,1712584233974,-554.54,0.00061095,120]
[321888613,1712584233984,-841.39,0.00061095,120]
[321888614,1712584233992,-1834.82,0.00061095,120]
[321888615,1712584234002,-165.00238194,0.000611,120]
[321888616,1712584234011,-1000.0,0.000618,60]
[321888617,1712584234020,-167.63216158,0.00061894,2]
[321888618,1712584234029,-500.0,0.00061914,120]
[321888619,1712584234039,-500.0,0.00061915,120]
[321888620,1712584234049,-500.0,0.00061915,120]
[321888621,1712584234058,-500.0,0.00061915,120]
[321888622,1712584234067,-500.0,0.00061915,120]
[321888623,1712584234076,-500.0,0.00061915,120]
[321888624,1712584234085,-500.0,0.00061915,120]
[321888625,1712584234095,-1180.39,0.00061915,120]
[321888626,1712584234104,-395.27206747,0.00061915,120]
[321888627,1712584234113,-500.0,0.00061915,120]
[321888628,1712584234124,-500.0,0.00061915,120]
[321888629,1712584234133,-500.0,0.00061915,120]
[321888630,1712584234142,-500.0,0.00061915,120]
[321888631,1712584234152,-1860.21,0.00061915,120]
[321888632,1712584234161,-825.34,0.00061915,120]
[321888633,1712584234170,-500.0,0.00061915,120]
[321888634,1712584234180,-500.0,0.00061915,120]
[321888635,1712584234189,-500.0,0.00061915,120]
[321888636,1712584234199,-500.0,0.00061915,120]
[321888637,1712584234208,-500.0,0.00061915,120]
[321888638,1712584234217,-170.81589715,0.00061915,120]
[321888639,1712584234227,-1759.78,0.00061915,120]
[321888640,1712584234236,-500.0,0.00061915,120]
[321888641,1712584234245,-500.0,0.00061915,120]
[321888642,1712584234254,-751.15,0.00061915,2]
[321888643,1712584234265,-585.31291553,0.00061915,120]
[321888644,1712584234275,-500.0,0.00061915,120]
[321888645,1712584234288,-17276.51591518,0.00061915,120]
[321888674,1712584238714,-1342.30603125,0.00055504,4]
[321888675,1712584238723,-500.0,0.00060273,120]
[321888676,1712584238733,-500.0,0.00061095,120]
[321888677,1712584238742,-1033.23408482,0.00061915,120]
[321888678,1712584238752,-546.87,0.00061915,120]
[321888679,1712584238761,-3005.57,0.00061915,120]
[321888680,1712584238770,-500.0,0.00061915,120]
[321888681,1712584238779,-500.0,0.00061915,120]
[321888682,1712584238789,-500.0,0.00061915,120]
[321888683,1712584238798,-500.0,0.00061915,120]
[321888684,1712584238808,-500.0,0.00061915,120]
[321888685,1712584238817,-1105.46,0.00061915,120]
[321888686,1712584238827,-500.0,0.00061915,120]
[321888687,1712584238837,-1228.05,0.00061915,120]
[321888688,1712584238846,-500.0,0.00061915,120]
[321888689,1712584238856,-500.0,0.00061915,120]
[321888690,1712584238865,-500.0,0.00061915,120]
[321888691,1712584238875,-500.0,0.00061915,120]
[321888692,1712584238884,-500.0,0.00061915,120]
[321888693,1712584238893,-500.0,0.00061915,120]
[321888694,1712584238902,-500.0,0.00061915,120]
[321888695,1712584238911,-1672.78,0.00061915,120]
[321888696,1712584238920,-500.0,0.00061915,120]
[321888697,1712584238929,-500.0,0.00061916,120]
[321888698,1712584238938,-500.0,0.00061916,120]
[321888699,1712584238947,-538.67765657,0.00061916,120]
[321888700,1712584238956,-330.20451992,0.00061916,120]
[321888701,1712584238966,-500.0,0.00061916,120]
[321888702,1712584238975,-500.0,0.00061916,120]
[321888703,1712584238985,-500.0,0.00061916,120]
[321888704,1712584238994,-500.0,0.00061916,120]
[321888705,1712584239003,-500.0,0.00061916,120]
[321888706,1712584239013,-630.06,0.00061916,120]
[321888707,1712584239022,-3359.94190956,0.00061917,61]
[321888708,1712584239031,-716.86,0.00061917,120]
[321888709,1712584239041,-500.0,0.00061917,120]
[321888710,1712584239051,-515.81,0.00061917,120]
[321888711,1712584239060,-500.0,0.00061917,120]
[321888712,1712584239070,-500.0,0.00061917,120]
[321888713,1712584239079,-497.0,0.00061917,120]
[321888714,1712584239088,-500.0,0.00061917,120]
[321888715,1712584239097,-500.0,0.00061917,120]
[321888716,1712584239107,-632.66,0.00061917,120]
[321888718,1712584239116,-500.0,0.00061917,120]
[321888720,1712584239126,-833.7,0.00061917,120]
[321888721,1712584239135,-1067.98,0.00061917,120]
[321888722,1712584239144,-500.0,0.00061917,120]
[321888723,1712584239153,-500.0,0.00061917,120]
[321888724,1712584239162,-500.0,0.00061917,120]
[321888725,1712584239172,-500.0,0.00061917,120]
[321888726,1712584239181,-500.0,0.00061917,120]
[321888727,1712584239190,-3744.26,0.00061917,90]
[321888729,1712584239199,-500.0,0.00061917,120]
[321888730,1712584239208,-669.32,0.00061917,21]
[321888731,1712584239217,-500.0,0.00061917,120]
[321888733,1712584239227,-500.0,0.00061917,120]
[321888735,1712584239236,-500.0,0.00061917,120]
[321888737,1712584239245,-500.0,0.00061917,120]
[321888738,1712584239254,-500.0,0.00061917,120]
[321888739,1712584239265,-6096.5,0.00061917,120]
[321888740,1712584239275,-500.0,0.00061917,120]
[321888741,1712584239288,-500.0,0.00061917,120]
[321888742,1712584239298,-500.0,0.00061917,120]
[321888744,1712584239307,-500.0,0.00061917,120]
[321888745,1712584239316,-3625.23,0.00061917,120]
[321888746,1712584239325,-500.0,0.00061917,60]
[321888747,1712584239334,-500.0,0.00061917,120]
[321888748,1712584239343,-1900.0,0.00061917,120]
[321888749,1712584239353,-500.0,0.00061917,120]
[321888750,1712584239362,-500.0,0.00061917,120]
[321888751,1712584239371,-500.0,0.00061917,120]
[321888752,1712584239382,-500.0,0.00061917,120]
[321888753,1712584239391,-500.0,0.00061917,120]
[321888754,1712584239401,-554.54,0.00061917,120]
[321888756,1712584239410,-841.39,0.00061917,120]
[321888758,1712584239419,-1834.82,0.00061917,120]
[321888760,1712584239428,-253.667706,0.00062004,2]
[321888762,1712584239436,-165.00238194,0.0006263,120]
[321888764,1712584239445,-751.50989625,0.00062639,120]
[321888765,1712584239454,-480.0,0.000627,30]
[321888767,1712584239464,-500.0,0.00062735,120]
[321888770,1712584239473,-2531.16433911,0.00062736,7]
[321888771,1712584239482,-3055.5,0.00062736,120]
[321888773,1712584239492,-2180.13,0.00062736,120]
[321888775,1712584239501,-500.0,0.00062736,120]
[321888777,1712584239510,-1752.06,0.00062736,120]
[321888779,1712584239519,-1469.82,0.00062736,120]
[321888781,1712584239528,-500.0,0.00062736,120]
[321888783,1712584239537,-1688.44,0.00062736,120]
[321888785,1712584239547,-500.0,0.00062736,120]
[321888787,1712584239556,-1444.2266025,0.00062737,120]
[321888789,1712584239565,-329.57798133,0.00062737,7]
[321888791,1712584239574,-242.23655039,0.00062737,7]
[321888793,1712584239584,-155.42342081,0.00062737,7]
[321888796,1712584239594,-3150.9234543,0.00062737,30]
[321888797,1712584239603,-324.43791784,0.00062737,7]
[321888800,1712584239614,-323.61289454,0.00062737,7]
[321888801,1712584239623,-260.42235327,0.00062737,7]
[321888803,1712584239633,-282.73754973,0.00062737,120]
[321888805,1712584239642,-500.0,0.00062737,120]
[321888808,1712584239653,-500.0,0.00062737,120]
[321888810,1712584239662,-500.0,0.00062737,120]
[321888812,1712584239671,-500.0,0.00062737,120]
[321888813,1712584239681,-500.0,0.00062737,120]
[321888815,1712584239691,-1180.39,0.00062737,120]
[321888817,1712584239700,-500.0,0.00062737,120]
[321888819,1712584239710,-500.0,0.00062737,120]
[321888821,1712584239719,-500.0,0.00062737,120]
[321888823,1712584239729,-500.0,0.00062737,120]
[321888833,1712584239802,-1860.21,0.00062737,120]
[321888835,1712584239824,-825.34,0.00062737,120]
[321888837,1712584239834,-159.63390791,0.00062737,120]
[321888839,1712584239845,-500.0,0.00062737,120]
[321888841,1712584239854,-500.0,0.00062737,120]
[321888843,1712584239865,-500.0,0.00062737,120]
[321888845,1712584239876,-500.0,0.00062737,120]
[321888847,1712584239885,-1759.78,0.00062737,120]
[321888849,1712584239894,-500.0,0.00062737,120]
[321888851,1712584239904,-751.15,0.00062737,2]
[321888853,1712584239913,-500.0,0.00062737,120]
[321888856,1712584239922,-7306.13713696,0.00062737,120]
[321888860,1712584239935,-11003.61286304,0.00062737,120]
[321888863,1712584239945,-3005.57,0.00062737,120]
[321888865,1712584239954,-500.0,0.00062737,120]
[321888867,1712584239964,-490.04436892,0.00062737,120]
[321888869,1712584239973,-500.0,0.00062737,120]
[321888871,1712584239982,-500.0,0.00062737,120]
[321888873,1712584239992,-500.0,0.00062737,120]